fUST/lending_fUST_20240519
["ID","MTS","AMOUNT","RATE_DAILY","PERIOD"]
[327473649,1716102634720,-2078.17,0.00016438,2]
[327473650,1716102634730,-500.0,0.00016438,2]
[327473651,1716102634739,-500.0,0.00016438,2]
[327473652,1716102634749,-500.0,0.00016438,2]
[327473653,1716102634758,-500.0,0.00016438,2]
[327473654,1716102634767,-309.37939374,0.00016438,2]
[327473655,1716102634776,-2145.75,0.00016438,2]
[327473656,1716102634785,-1516.5,0.00016438,2]
[327473657,1716102634795,-815.73,0.00016438,2]
[327473658,1716102634804,-3702.55,0.00016438,2]
[327473659,1716102634813,-500.0,0.00016438,2]
[327473660,1716102634822,-2438.82,0.00016438,2]
[327473661,1716102634831,-554.66,0.00016438,2]
[327473662,1716102634840,-1101.98,0.00016438,2]
[327473663,1716102634849,-3168.62,0.00016438,2]
[327473664,1716102634859,-500.0,0.00016438,2]
[327473665,1716102634867,-500.0,0.00016438,2]
[327473666,1716102634876,-500.0,0.00016438,2]
[327473667,1716102634887,-500.0,0.00016438,2]
[327473668,1716102634901,-500.0,0.00016438,2]
[327473669,1716102634916,-500.0,0.00016438,2]
[327473670,1716102634926,-2157.79,0.00016438,2]
[327473671,1716102634936,-500.0,0.00016438,2]
[327473672,1716102634945,-3563.41,0.00016438,2]
[327473673,1716102634954,-393.06272585,0.00016438,2]
[327473674,1716102634963,-500.0,0.00016438,2]
[327473675,1716102634973,-764.01,0.00016438,2]
[327473676,1716102634989,-1480.08,0.00016438,2]
[327473677,1716102634998,-519.05396524,0.00016438,2]
[327473678,1716102635008,-500.0,0.00016438,2]
[327473679,1716102635017,-504.11249685,0.00016438,2]
[327473680,1716102635026,-503.52171563,0.00016438,2]
[327473681,1716102635036,-500.0,0.00016438,2]
[327473682,1716102635045,-500.0,0.00016438,2]
[327473683,1716102635055,-340.9723411,0.00016438,2]
[327473684,1716102635065,-500.0,0.00016438,2]
[327473685,1716102635075,-500.0,0.00016438,2]
[327473686,1716102635099,-500.0,0.00016438,2]
[327473687,1716102635109,-500.0,0.00016438,2]
[327473688,1716102635118,-1745.43,0.00016438,2]
[327473689,1716102635128,-500.0,0.00016438,2]
[327473690,1716102635138,-500.0,0.00016438,2]
[327473691,1716102635147,-500.0,0.00016438,2]
[327473692,1716102635157,-500.0,0.00016438,2]
[327473693,1716102635166,-500.0,0.00016438,2]
[327473694,1716102635176,-500.0,0.00016438,2]
[327473695,1716102635188,-858.57,0.00016438,2]
[327473696,1716102635197,-500.0,0.00016438,2]
[327473697,1716102635206,-500.0,0.00016438,2]
[327473698,1716102635216,-500.0,0.00016438,2]
[327473699,1716102635225,-500.0,0.00016438,2]
[327473700,1716102635234,-6989.26,0.00016438,2]
[327473701,1716102635244,-8834.93,0.00016438,2]
[327473702,1716102635255,-576.38,0.00016438,2]
[327473703,1716102635264,-500.0,0.00016438,2]
[327473704,1716102635274,-500.0,0.00016438,2]
[327473705,1716102635283,-500.0,0.00016438,2]
[327473706,1716102635292,-500.0,0.00016438,2]
[327473707,1716102635302,-671.92,0.00016438,2]
[327473708,1716102635311,-56515.44,0.00016438,2]
[327473709,1716102635321,-2149.59,0.00016438,2]
[327473710,1716102635330,-2297.87,0.00016438,2]
[327473711,1716102635340,-500.0,0.00016438,2]
[327473712,1716102635350,-6849.14,0.00016438,2]
[327473713,1716102635360,-500.0,0.00016438,2]
[327473714,1716102635369,-501.46076454,0.00016438,2]
[327473715,1716102635379,-764.24,0.00016438,2]
[327473716,1716102635388,-500.0,0.00016438,2]
[327473717,1716102635398,-500.0,0.00016438,2]
[327473718,1716102635407,-500.0,0.00016438,2]
[327473719,1716102635417,-2581.11,0.00016438,2]
[327473720,1716102635427,-1709.01,0.00016438,2]
[327473721,1716102635437,-505.00417907,0.00016438,2]
[327473722,1716102635447,-12256.81,0.00016438,2]
[327473723,1716102635456,-1825.1,0.00016438,2]
[327473724,1716102635466,-500.0,0.00016438,2]
[327473725,1716102635476,-500.0,0.00016438,2]
[327473726,1716102635485,-500.0,0.00016438,2]
[327473727,1716102635495,-961.63,0.00016438,2]
[327473728,1716102635505,-2096.47,0.00016438,2]
[327473729,1716102635516,-500.0,0.00016438,2]
[327473730,1716102635525,-680.17,0.00016438,2]
[327473731,1716102635535,-1569.61,0.00016438,2]
[327473732,1716102635546,-500.0,0.00016438,2]
[327473733,1716102635556,-662.13,0.00016438,2]
[327473734,1716102635565,-737.49,0.00016438,2]
[327473735,1716102635575,-500.0,0.00016438,2]
[327473736,1716102635586,-2763.69,0.00016438,2]
[327473737,1716102635596,-506.48,0.00016438,2]
[327473738,1716102635605,-3093.88,0.00016438,2]
[327473739,1716102635615,-500.0,0.00016438,2]
[327473740,1716102635625,-500.0,0.00016438,2]
[327473741,1716102635726,-500.0,0.00016438,2]
[327473742,1716102635737,-500.0,0.00016438,2]
[327473743,1716102635747,-501.52653388,0.00016438,2]
[327473744,1716102635756,-500.0,0.00016438,2]
[327473745,1716102635766,-500.0,0.00016438,2]
[327473746,1716102635776,-1124.04,0.00016438,2]
[327473747,1716102635786,-500.0,0.00016438,2]
[327473748,1716102635796,-1091.23,0.00016438,2]
[327473749,1716102635806,-3551.36,0.00016438,2]
[327473750,1716102635815,-522.94149242,0.00016438,2]
[327473751,1716102635824,-500.0,0.00016438,2]
[327473752,1716102635834,-500.0,0.00016438,2]
[327473753,1716102635843,-600.75669551,0.00016438,2]
[327473754,1716102635853,-500.68666872,0.00016438,2]
[327473755,1716102635862,-500.0,0.00016438,2]
[327473756,1716102635872,-500.0,0.00016438,2]
[327473757,1716102635881,-500.0,0.00016438,2]
[327473758,1716102635891,-502.74778553,0.00016438,2]
[327473759,1716102635901,-500.0,0.00016438,2]
[327473760,1716102635910,-597.8,0.00016438,2]
[327473761,1716102635920,-500.0,0.00016438,2]
[327473762,1716102635929,-3593.31,0.00016438,2]
[327473763,1716102635939,-500.0,0.00016438,2]
[327473764,1716102635948,-500.0,0.00016438,2]
[327473765,1716102635957,-1310.88,0.00016438,2]
[327473766,1716102635967,-2032.29,0.00016438,2]
[327473767,1716102635977,-500.0,0.00016438,2]
[327473768,1716102635987,-500.0,0.00016438,2]
[327473769,1716102635996,-500.0,0.00016438,2]
[327473770,1716102636005,-1413.18,0.00016438,2]
[327473771,1716102636015,-500.0,0.00016438,2]
[327473772,1716102636025,-4857.93,0.00016438,2]
[327473773,1716102636034,-2781.03,0.00016438,2]
[327473774,1716102636043,-2196.71,0.00016438,2]
[327473775,1716102636053,-500.0,0.00016438,2]
[327473776,1716102636063,-2517.92,0.00016438,2]
[327473777,1716102636073,-507.71589141,0.00016438,2]
[327473778,1716102636082,-500.0,0.00016438,2]
[327473779,1716102636092,-607.66,0.00016438,2]
[327473780,1716102636102,-880.7,0.00016438,2]
[327473781,1716102636112,-379.68902072,0.00016438,2]
[327473782,1716102636121,-500.0,0.00016438,2]
[327473783,1716102636130,-500.0,0.00016438,2]
[327473784,1716102636140,-507.18065097,0.00016438,2]
[327473785,1716102636149,-2276.02,0.00016438,2]
[327473786,1716102636158,-619.23,0.00016438,2]
[327473787,1716102636167,-872.15,0.00016438,2]
[327473788,1716102636177,-500.0,0.00016438,2]
[327473789,1716102636186,-500.0,0.00016438,2]
[327473790,1716102636195,-874.13,0.00016438,2]
[327473791,1716102636204,-1456.16,0.00016438,2]
[327473792,1716102636214,-957.3,0.00016438,2]
[327473793,1716102636223,-7814.61,0.00016438,2]
[327473794,1716102636233,-1181.2,0.00016438,2]
[327473795,1716102636242,-500.0,0.00016438,2]
[327473796,1716102636252,-500.0,0.00016438,2]
[327473797,1716102636262,-4756.07,0.00016438,2]
[327473798,1716102636274,-506.0,0.00016438,2]
[327473799,1716102636284,-500.0,0.00016438,2]
[327473800,1716102636295,-14144.53,0.00016438,2]
[327473801,1716102636304,-500.0,0.00016438,2]
[327473802,1716102636315,-7740.46,0.00016438,2]
[327473803,1716102636325,-730.76,0.00016438,2]
[327473804,1716102636334,-972.1,0.00016438,2]
[327473805,1716102636344,-274.24725433,0.000165,2]
[327473806,1716102636355,-200.0,0.000165,2]
[327473807,1716102636365,-150.0,0.00016503,2]
[327473808,1716102636374,-150.0,0.0001662,2]
[327473809,1716102636384,-500.0,0.00016712,2]
[327473810,1716102636393,-500.0,0.00016712,2]
[327473811,1716102636403,-500.0,0.00016712,2]
[327473812,1716102636412,-500.0,0.00016712,2]
[327473813,1716102636421,-500.0,0.00016712,2]
[327473814,1716102636431,-500.0,0.00016712,2]
[327473815,1716102636440,-500.0,0.00016712,2]
[327473816,1716102636450,-500.0,0.00016712,2]
[327473817,1716102636459,-500.0,0.00016712,2]
[327473818,1716102636469,-216.60583373,0.00016712,2]
[327473819,1716102636478,-500.0,0.00016712,2]
[327473820,1716102636487,-599.29920858,0.00016712,2]
[327473821,1716102636497,-954.9,0.00016712,2]
[327473822,1716102636506,-500.0,0.00016712,2]
[327473823,1716102636516,-500.0,0.00016712,2]
[327473824,1716102636525,-500.0,0.00016712,4]
[327473825,1716102636535,-518.76371123,0.00016712,2]
[327473826,1716102636545,-505.34186754,0.00016712,2]
[327473827,1716102636555,-500.0,0.00016712,2]
[327473828,1716102636565,-500.0,0.00016712,2]
[327473829,1716102636575,-500.0,0.00016712,2]
[327473830,1716102636584,-500.0,0.00016712,2]
[327473831,1716102636593,-496.16363649,0.00016712,2]
[327473832,1716102636603,-502.49005724,0.00016712,2]
[327473833,1716102636612,-500.0,0.00016712,2]
[327473834,1716102636623,-500.0,0.00016712,2]
[327473835,1716102636632,-500.0,0.00016712,2]
[327473836,1716102636642,-500.0,0.00016712,2]
[327473837,1716102636651,-502.93894055,0.00016712,2]
[327473838,1716102636660,-500.0,0.00016712,2]
[327473839,1716102636670,-262.32931417,0.00016712,2]
[327473840,1716102636679,-655.4,0.00016712,2]
[327473841,1716102636688,-500.0,0.00016712,2]
[327473842,1716102636698,-1297.07,0.00016712,2]
[327473843,1716102636707,-500.0,0.00016712,2]
[327473844,1716102636717,-614.13,0.00016712,2]
[327473845,1716102636727,-500.0,0.00016712,2]
[327473846,1716102636736,-500.0,0.00016712,2]
[327473847,1716102636746,-666.37,0.00016712,2]
[327473848,1716102636755,-500.0,0.00016712,2]
[327473849,1716102636766,-500.0,0.00016712,2]
[327473850,1716102636775,-500.0,0.00016712,2]
[327473851,1716102636785,-1420.53,0.00016712,2]
[327473852,1716102636796,-1121.57,0.00016712,2]
[327473853,1716102636806,-1692.47,0.00016712,2]
[327473854,1716102636815,-1328.01,0.00016712,2]
[327473855,1716102636825,-639.13,0.00016712,2]
[327473856,1716102636835,-500.0,0.00016712,2]
[327473857,1716102636845,-998.82,0.00016712,2]
[327473858,1716102636854,-248.76678936,0.00016712,2]
[327473859,1716102636864,-546.55730663,0.00016712,2]
[327473860,1716102636873,-600.72,0.00016712,2]
[327473861,1716102636883,-500.0,0.00016712,2]
[327473862,1716102636892,-500.0,0.00016712,2]
[327473863,1716102636902,-500.0,0.00016712,2]
[327473864,1716102636912,-500.0,0.00016712,2]
[327473865,1716102636921,-1951.79,0.00016712,2]
[327473866,1716102636931,-2997.1,0.00016712,2]
[327473867,1716102636940,-1349.02,0.00016712,2]
[327473868,1716102636950,-1455.08,0.00016712,2]
[327473869,1716102636960,-500.0,0.00016712,2]
[327473870,1716102636969,-834.5,0.00016712,2]
[327473871,1716102636979,-500.0,0.00016712,2]
[327473872,1716102636988,-500.0,0.00016712,2]
[327473873,1716102636998,-792.08,0.00016712,2]
[327473874,1716102637007,-991.5,0.00016712,2]
[327473875,1716102637016,-500.0,0.00016712,2]
[327473876,1716102637026,-500.0,0.00016712,2]
[327473877,1716102637035,-1177.41,0.00016712,2]
[327473878,1716102637046,-500.0,0.00016712,2]
[327473879,1716102637055,-500.0,0.00016712,2]
[327473880,1716102637065,-532.9,0.00016712,2]
[327473881,1716102637074,-416.28392512,0.00016712,2]
[327473882,1716102637083,-500.0,0.00016712,2]
[327473883,1716102637093,-2078.17,0.00016712,2]
[327473884,1716102637102,-500.0,0.00016712,2]
[327473885,1716102637111,-500.0,0.00016712,2]
[327473886,1716102637121,-500.0,0.00016712,2]
[327473887,1716102637131,-500.0,0.00016712,2]
[327473888,1716102637141,-2145.75,0.00016712,2]
[327473889,1716102637150,-1516.5,0.00016712,2]
[327473890,1716102637160,-815.73,0.00016712,2]
[327473891,1716102637169,-3702.55,0.00016712,2]
[327473892,1716102637179,-500.0,0.00016712,2]
[327473893,1716102637188,-2438.82,0.00016712,2]
[327473894,1716102637198,-554.66,0.00016712,2]
[327473895,1716102637208,-1101.98,0.00016712,2]
[327473896,1716102637217,-3168.62,0.00016712,2]
[327473897,1716102637227,-500.0,0.00016712,2]
[327473898,1716102637236,-500.0,0.00016712,2]
[327473899,1716102637245,-500.0,0.00016712,2]
[327473900,1716102637255,-500.0,0.00016712,2]
[327473901,1716102637264,-500.0,0.00016712,2]
[327473902,1716102637273,-500.0,0.00016712,2]
[327473903,1716102637284,-2157.79,0.00016712,2]
[327473904,1716102637295,-500.0,0.00016712,2]
[327473905,1716102637304,-3563.41,0.00016712,2]
[327473906,1716102637314,-500.0,0.00016712,2]
[327473907,1716102637323,-764.01,0.00016712,2]
[327473908,1716102637333,-1480.08,0.00016712,2]
[327473909,1716102637342,-500.0,0.00016712,2]
[327473910,1716102637352,-500.0,0.00016712,2]
[327473911,1716102637361,-500.0,0.00016712,2]
[327473912,1716102637370,-500.0,0.00016712,2]
[327473913,1716102637380,-500.0,0.00016712,2]
[327473914,1716102637389,-500.0,0.00016712,2]
[327473915,1716102637399,-505.05728569,0.00016712,2]
[327473916,1716102637408,-1745.43,0.00016712,2]
[327473917,1716102637418,-500.0,0.00016712,2]
[327473918,1716102637427,-500.0,0.00016712,2]
[327473919,1716102637436,-500.0,0.00016712,2]
[327473920,1716102637445,-500.0,0.00016712,2]
[327473921,1716102637456,-500.0,0.00016712,2]
[327473922,1716102637465,-500.0,0.00016712,2]
[327473923,1716102637475,-858.57,0.00016712,2]
[327473924,1716102637485,-500.0,0.00016712,2]
[327473925,1716102637494,-500.0,0.00016712,2]
[327473926,1716102637504,-500.0,0.00016712,2]
[327473927,1716102637599,-500.0,0.00016712,2]
[327473928,1716102637610,-6989.26,0.00016712,2]
[327473929,1716102637619,-8834.93,0.00016712,2]
[327473930,1716102637629,-576.38,0.00016712,2]
[327473931,1716102637639,-500.0,0.00016712,2]
[327473932,1716102637648,-500.0,0.00016712,2]
[327473933,1716102637658,-500.0,0.00016712,2]
[327473934,1716102637668,-500.0,0.00016712,2]
[327473935,1716102637677,-671.92,0.00016712,2]
[327473936,1716102637687,-56515.44,0.00016712,2]
[327473937,1716102637697,-2149.59,0.00016712,2]
[327473938,1716102637706,-2297.87,0.00016712,2]
[327473939,1716102637715,-500.0,0.00016712,2]
[327473940,1716102637725,-6849.14,0.00016712,2]
[327473941,1716102637734,-500.0,0.00016712,2]
[327473942,1716102637745,-764.24,0.00016712,2]
[327473943,1716102637755,-500.0,0.00016712,2]
[327473944,1716102637766,-500.0,0.00016712,2]
[327473945,1716102637775,-241.03491838,0.00016712,2]
[327473946,1716102637785,-2581.11,0.00016712,2]
[327473947,1716102637796,-1709.01,0.00016712,2]
[327473948,1716102637805,-12256.81,0.00016712,2]
[327473949,1716102637814,-1825.1,0.00016712,2]
[327473950,1716102637823,-500.0,0.00016712,2]
[327473951,1716102637832,-500.0,0.00016712,2]
[327473952,1716102637841,-500.0,0.00016712,2]
[327473953,1716102637850,-961.63,0.00016712,2]
[327473954,1716102637860,-2096.47,0.00016712,2]
[327473955,1716102637869,-500.0,0.00016712,2]
[327473956,1716102637878,-680.17,0.00016712,2]
[327473957,1716102637887,-1569.61,0.00016712,2]
[327473958,1716102637896,-500.0,0.00016712,2]
[327473959,1716102637907,-662.13,0.00016712,2]
[327473960,1716102637919,-737.49,0.00016712,2]
[327473961,1716102637929,-500.0,0.00016712,2]
[327473962,1716102637940,-2763.69,0.00016712,2]
[327473963,1716102637950,-506.48,0.00016712,2]
[327473964,1716102637960,-3093.88,0.00016712,2]
[327473965,1716102637969,-500.0,0.00016712,2]
[327473966,1716102637979,-501.83389245,0.00016712,2]
[327473967,1716102637988,-500.0,0.00016712,2]
[327473968,1716102637998,-500.0,0.00016712,2]
[327473969,1716102638009,-500.0,0.00016712,2]
[327473970,1716102638018,-500.0,0.00016712,2]
[327473971,1716102638027,-1124.04,0.00016712,2]
[327473972,1716102638036,-500.0,0.00016712,2]
[327473973,1716102638047,-1091.23,0.00016712,2]
[327473974,1716102638056,-3551.36,0.00016712,2]
[327473975,1716102638066,-500.0,0.00016712,2]
[327473976,1716102638076,-500.0,0.00016712,2]
[327473977,1716102638086,-500.0,0.00016712,2]
[327473978,1716102638097,-500.0,0.00016712,2]
[327473979,1716102638106,-504.5469424,0.00016712,2]
[327473980,1716102638116,-610.84409956,0.00016712,2]
[327473981,1716102638125,-597.8,0.00016712,2]
[327473982,1716102638136,-500.0,0.00016712,2]
[327473983,1716102638145,-3593.31,0.00016712,2]
[327473984,1716102638155,-500.0,0.00016712,2]
[327473985,1716102638164,-500.0,0.00016712,2]
[327473986,1716102638173,-1310.88,0.00016712,2]
[327473987,1716102638182,-2032.29,0.00016712,2]
[327473988,1716102638191,-500.0,0.00016712,2]
[327473989,1716102638200,-500.0,0.00016712,2]
[327473990,1716102638210,-181.27558821,0.00016712,2]
[327473992,1716102638220,-1413.18,0.00016712,2]
[327473994,1716102638230,-500.0,0.00016712,2]
[327473995,1716102638239,-4857.93,0.00016712,2]
[327473996,1716102638248,-2781.03,0.00016712,2]
[327473997,1716102638258,-2196.71,0.00016712,2]
[327473998,1716102638267,-376.65005418,0.00016712,2]
[327473999,1716102638281,-2517.92,0.00016712,2]
[327474000,1716102638291,-500.0,0.00016712,2]
[327474001,1716102638300,-607.66,0.00016712,2]
[327474002,1716102638310,-880.7,0.00016712,2]
[327474004,1716102638319,-500.0,0.00016712,2]
[327474005,1716102638328,-500.0,0.00016712,2]
[327474007,1716102638338,-2276.02,0.00016712,2]
[327474009,1716102638347,-619.23,0.00016712,2]
[327474012,1716102638357,-872.15,0.00016712,2]
[327474015,1716102638366,-500.0,0.00016712,2]
[327474017,1716102638376,-500.0,0.00016712,2]
[327474020,1716102638385,-874.13,0.00016712,2]
[327474022,1716102638395,-1456.16,0.00016712,2]
[327474024,1716102638405,-957.3,0.00016712,2]
[327474026,1716102638414,-7814.61,0.00016712,2]
[327474028,1716102638424,-1181.2,0.00016712,2]
[327474030,1716102638434,-500.0,0.00016712,2]
[327474031,1716102638443,-500.0,0.00016712,2]
[327474033,1716102638452,-4756.07,0.00016712,2]
[327474035,1716102638462,-506.0,0.00016712,2]
[327474037,1716102638472,-14144.53,0.00016712,2]
[327474039,1716102638482,-500.0,0.00016712,2]
[327474040,1716102638491,-7740.46,0.00016712,2]
[327474041,1716102638501,-730.76,0.00016712,2]
[327474042,1716102638511,-972.1,0.00016712,2]
[327474043,1716102638521,-500.0,0.00016986,2]
[327474044,1716102638531,-500.0,0.00016986,2]
[327474045,1716102638540,-500.0,0.00016986,2]
[327474046,1716102638550,-500.0,0.00016986,2]
[327474047,1716102638560,-500.0,0.00016986,2]
[327474048,1716102638569,-500.0,0.00016986,2]
[327474049,1716102638578,-500.0,0.00016986,2]
[327474050,1716102638588,-500.0,0.00016986,2]
[327474051,1716102638597,-500.0,0.00016986,2]
[327474052,1716102638606,-500.0,0.00016986,2]
[327474053,1716102638615,-954.9,0.00016986,2]
[327474054,1716102638625,-500.0,0.00016986,2]
[327474055,1716102638634,-500.0,0.00016986,2]
[327474056,1716102638643,-500.0,0.00016986,4]
[327474057,1716102638652,-500.0,0.00016986,2]
[327474058,1716102638661,-500.0,0.00016986,2]
[327474059,1716102638670,-500.0,0.00016986,2]
[327474060,1716102638680,-500.0,0.00016986,2]
[327474061,1716102638689,-500.0,0.00016986,2]
[327474062,1716102638698,-500.0,0.00016986,2]
[327474063,1716102638708,-500.0,0.00016986,2]
[327474064,1716102638718,-500.0,0.00016986,2]
[327474065,1716102638728,-500.0,0.00016986,2]
[327474066,1716102638737,-655.4,0.00016986,2]
[327474067,1716102638746,-306.48532079,0.00016986,2]
[327474068,1716102638755,-1297.07,0.00016986,2]
[327474069,1716102638764,-500.0,0.00016986,2]
[327474070,1716102638774,-614.13,0.00016986,2]
[327474071,1716102638783,-522.69286805,0.00016986,2]
[327474072,1716102638793,-500.0,0.00016986,2]
[327474073,1716102638803,-666.37,0.00016986,2]
[327474074,1716102638812,-500.0,0.00016986,2]
[327474075,1716102638821,-506.42438088,0.00016986,2]
[327474076,1716102638830,-500.0,0.00016986,2]
[327474077,1716102638840,-1420.53,0.00016986,2]
[327474078,1716102638849,-1121.57,0.00016986,2]
[327474079,1716102638859,-1692.47,0.00016986,2]
[327474080,1716102638868,-1328.01,0.00016986,2]
[327474081,1716102638877,-639.13,0.00016986,2]
[327474082,1716102638887,-500.0,0.00016986,2]
[327474083,1716102638896,-998.82,0.00016986,2]
[327474084,1716102638905,-600.72,0.00016986,2]
[327474085,1716102638915,-500.0,0.00016986,2]
[327474086,1716102638924,-500.0,0.00016986,2]
[327474087,1716102638933,-500.0,0.00016986,2]
[327474088,1716102638942,-500.0,0.00016986,2]
[327474089,1716102638952,-1951.79,0.00016986,2]
[327474090,1716102638961,-2997.1,0.00016986,2]
[327474091,1716102638970,-1349.02,0.00016986,2]
[327474092,1716102638979,-1455.08,0.00016986,2]
[327474093,1716102638988,-500.0,0.00016986,2]
[327474094,1716102638997,-834.5,0.00016986,2]
[327474095,1716102639007,-500.0,0.00016986,2]
[327474096,1716102639016,-500.0,0.00016986,2]
[327474097,1716102639026,-792.08,0.00016986,2]
[327474098,1716102639034,-991.5,0.00016986,2]
[327474099,1716102639045,-500.0,0.00016986,2]
[327474101,1716102639054,-500.0,0.00016986,2]
[327474103,1716102639063,-1177.41,0.00016986,2]
[327474105,1716102639073,-500.0,0.00016986,2]
[327474106,1716102639082,-500.0,0.00016986,2]
[327474108,1716102639091,-532.9,0.00016986,2]
[327474110,1716102639100,-500.0,0.00016986,2]
[327474111,1716102639110,-2078.17,0.00016986,2]
[327474112,1716102639119,-500.0,0.00016986,2]
[327474113,1716102639129,-500.0,0.00016986,2]
[327474114,1716102639138,-500.0,0.00016986,2]
[327474115,1716102639147,-500.0,0.00016986,2]
[327474116,1716102639156,-2145.75,0.00016986,2]
[327474117,1716102639165,-1516.5,0.00016986,2]
[327474118,1716102639175,-815.73,0.00016986,2]
[327474119,1716102639184,-3702.55,0.00016986,2]
[327474121,1716102639194,-500.0,0.00016986,2]
[327474122,1716102639203,-2438.82,0.00016986,2]
[327474123,1716102639212,-554.66,0.00016986,2]
[327474124,1716102639222,-1101.98,0.00016986,2]
[327474125,1716102639231,-3168.62,0.00016986,2]
[327474127,1716102639321,-649.61806024,0.00016986,2]
[327474128,1716102639331,-500.0,0.00016986,2]
[327474130,1716102639341,-500.0,0.00016986,2]
[327474131,1716102639351,-500.0,0.00016986,2]
[327474132,1716102639360,-500.0,0.00016986,2]
[327474133,1716102639369,-500.0,0.00016986,2]
[327474134,1716102639379,-2157.79,0.00016986,2]
[327474135,1716102639388,-500.0,0.00016986,2]
[327474136,1716102639398,-3563.41,0.00016986,2]
[327474137,1716102639407,-500.0,0.00016986,2]
[327474138,1716102639416,-764.01,0.00016986,2]
[327474139,1716102639426,-1480.08,0.00016986,2]
[327474140,1716102639435,-500.0,0.00016986,2]
[327474141,1716102639444,-500.0,0.00016986,2]
[327474142,1716102639453,-500.0,0.00016986,2]
[327474143,1716102639462,-500.0,0.00016986,2]
[327474144,1716102639471,-500.0,0.00016986,2]
[327474145,1716102639481,-500.0,0.00016986,2]
[327474146,1716102639490,-1745.43,0.00016986,2]
[327474147,1716102639500,-500.0,0.00016986,2]
[327474148,1716102639509,-500.0,0.00016986,2]
[327474149,1716102639518,-500.0,0.00016986,2]
[327474150,1716102639527,-500.0,0.00016986,2]
[327474151,1716102639537,-500.0,0.00016986,2]
[327474152,1716102639546,-500.0,0.00016986,2]
[327474153,1716102639555,-858.57,0.00016986,2]
[327474154,1716102639565,-500.0,0.00016986,2]
[327474155,1716102639575,-500.0,0.00016986,2]
[327474156,1716102639584,-500.0,0.00016986,2]
[327474157,1716102639594,-500.0,0.00016986,2]
[327474158,1716102639603,-6989.26,0.00016986,2]
[327474159,1716102639612,-8834.93,0.00016986,2]
[327474160,1716102639621,-576.38,0.00016986,2]
[327474161,1716102639631,-500.0,0.00016986,2]
[327474162,1716102639641,-500.0,0.00016986,2]
[327474164,1716102639650,-500.0,0.00016986,2]
[327474165,1716102639659,-500.0,0.00016986,2]
[327474167,1716102639669,-671.92,0.00016986,2]
[327474169,1716102639678,-56515.44,0.00016986,2]
[327474170,1716102639688,-2149.59,0.00016986,2]
[327474171,1716102639697,-2297.87,0.00016986,2]
[327474172,1716102639706,-500.0,0.00016986,2]
[327474173,1716102639715,-6849.14,0.00016986,2]
[327474174,1716102639725,-500.0,0.00016986,2]
[327474175,1716102639734,-764.24,0.00016986,2]
[327474176,1716102639743,-500.0,0.00016986,2]
[327474177,1716102639752,-500.0,0.00016986,2]
[327474178,1716102639762,-2581.11,0.00016986,2]
[327474179,1716102639771,-1709.01,0.00016986,2]
[327474180,1716102639780,-12256.81,0.00016986,2]